[Event "Titled Tuesday Blitz February 15 Early 2022"]
[White "Clawitter, Craig"]
[Black "Buscar, Michael"]
[WhiteFideId "2023105"]
[BlackFideId "2603616"]
[WhiteElo "2140"]
[BlackElo "2010"]
[Result "0-1"]
[Round "08"]
[TimeControl "180+1"]
[Date "2022.02.15"]
[WhiteClock "0:00:02"]
[BlackClock "0:00:41"]

1. e4 {[%clk 0:03:00]}  c5 {[%clk 0:02:58]} 2. Nf3 {[%clk 0:03:01]}  e6 {[%clk 0:02:57]} 3. d4 {[%clk 0:03:01]}  cxd4 {[%clk 0:02:56]} 4. Nxd4 {[%clk 0:03:02]}  Nc6 {[%clk 0:02:57]} 5. Nc3 {[%clk 0:03:02]}  Qc7 {[%clk 0:02:57]} 6. Be3 {[%clk 0:03:01]}  a6 {[%clk 0:02:56]} 7. Qd2 {[%clk 0:03:00]}  Nf6 {[%clk 0:02:46]} 8. f3 {[%clk 0:03:00]}  d6 {[%clk 0:02:46]} 9. g4 {[%clk 0:02:52]}  Be7 {[%clk 0:02:46]} 10. O-O-O {[%clk 0:02:51]}  Na5 {[%clk 0:02:46]} 11. g5 {[%clk 0:02:40]}  Nd7 {[%clk 0:02:42]} 12. h4 {[%clk 0:02:40]}  Nc4 {[%clk 0:02:37]} 13. Bxc4 {[%clk 0:02:37]}  Qxc4 {[%clk 0:02:37]} 14. Kb1 {[%clk 0:02:28]}  b5 {[%clk 0:02:32]} 15. h5 {[%clk 0:02:11]}  Bb7 {[%clk 0:02:24]} 16. g6 {[%clk 0:02:07]}  e5 {[%clk 0:01:53]} 17. Nf5 {[%clk 0:01:54]}  hxg6 {[%clk 0:01:39]} 18. hxg6 {[%clk 0:01:43]}  Rxh1 {[%clk 0:01:34]} 19. Rxh1 {[%clk 0:01:23]}  fxg6 {[%clk 0:01:25]} 20. Nxd6+ {[%clk 0:01:17]}  Bxd6 {[%clk 0:01:25]} 21. Qxd6 {[%clk 0:01:17]}  O-O-O {[%clk 0:01:25]} 22. Rd1 {[%clk 0:00:56]}  Qc7 {[%clk 0:01:18]} 23. Qxg6 {[%clk 0:00:46]}  Nf6 {[%clk 0:01:11]} 24. Qf5+ {[%clk 0:00:32]}  Kb8 {[%clk 0:01:11]} 25. Rxd8+ {[%clk 0:00:25]}  Qxd8 {[%clk 0:01:11]} 26. Qxe5+ {[%clk 0:00:26]}  Ka8 {[%clk 0:01:11]} 27. Qc5 {[%clk 0:00:14]}  Kb8 {[%clk 0:01:11]} 28. Qa7+ {[%clk 0:00:11]}  Kc8 {[%clk 0:01:11]} 29. Qc5+ {[%clk 0:00:09]}  Kb8 {[%clk 0:01:10]} 30. a3 {[%clk 0:00:08]}  Nd7 {[%clk 0:01:03]} 31. Bf4+ {[%clk 0:00:06]}  Ka8 {[%clk 0:01:03]} 32. Qd6 {[%clk 0:00:06]}  Qc8 {[%clk 0:00:57]} 33. e5 {[%clk 0:00:06]}  Nc5 {[%clk 0:00:55]} 34. Ne4 {[%clk 0:00:02]}  Ne6 {[%clk 0:00:41]} 0-1


[Site "https://www.chess.com"]

[Event "Titled Tuesday Blitz February 15 Early 2022"]
[White "Demchenko, Anton"]
[Black "Goryachkina, Aleksandra"]
[WhiteFideId "4160258"]
[BlackFideId "4147103"]
[WhiteElo "2539"]
[BlackElo "2426"]
[Result "1-0"]
[Round "08"]
[TimeControl "180+1"]
[Date "2022.02.15"]
[WhiteClock "0:00:53"]
[BlackClock "0:00:01"]

1. e4 {[%clk 0:03:00]}  e6 {[%clk 0:02:59]} 2. d4 {[%clk 0:02:59]}  d5 {[%clk 0:03:00]} 3. Nd2 {[%clk 0:03:00]}  c5 {[%clk 0:02:59]} 4. exd5 {[%clk 0:03:00]}  Qxd5 {[%clk 0:03:00]} 5. dxc5 {[%clk 0:03:00]}  Qxc5 {[%clk 0:02:59]} 6. Ngf3 {[%clk 0:03:01]}  Nf6 {[%clk 0:02:58]} 7. g3 {[%clk 0:03:01]}  Nbd7 {[%clk 0:02:47]} 8. Bg2 {[%clk 0:03:01]}  Be7 {[%clk 0:02:35]} 9. O-O {[%clk 0:03:01]}  O-O {[%clk 0:02:34]} 10. c4 {[%clk 0:02:55]}  Qc7 {[%clk 0:02:23]} 11. Nd4 {[%clk 0:02:45]}  a6 {[%clk 0:02:15]} 12. b3 {[%clk 0:02:45]}  Nc5 {[%clk 0:02:06]} 13. Qe2 {[%clk 0:02:36]}  Bd7 {[%clk 0:02:01]} 14. Bb2 {[%clk 0:02:30]}  Rad8 {[%clk 0:01:54]} 15. Rad1 {[%clk 0:02:02]}  Bc8 {[%clk 0:01:30]} 16. Nb1 {[%clk 0:01:56]}  Rfe8 {[%clk 0:01:13]} 17. Nc3 {[%clk 0:01:50]}  e5 {[%clk 0:01:05]} 18. Nc2 {[%clk 0:01:50]}  Bf5 {[%clk 0:00:47]} 19. Nb4 {[%clk 0:01:37]}  Bg4 {[%clk 0:00:23]} 20. Bf3 {[%clk 0:01:31]}  Be6 {[%clk 0:00:19]} 21. Nbd5 {[%clk 0:01:29]}  Bxd5 {[%clk 0:00:17]} 22. Nxd5 {[%clk 0:01:29]}  Nxd5 {[%clk 0:00:17]} 23. Bxd5 {[%clk 0:01:30]}  Bd6 {[%clk 0:00:15]} 24. Qg4 {[%clk 0:01:21]}  Kh8 {[%clk 0:00:10]} 25. Rfe1 {[%clk 0:01:20]}  Ne6 {[%clk 0:00:04]} 26. Qe4 {[%clk 0:00:57]}  Nc5 {[%clk 0:00:03]} 27. Qf5 {[%clk 0:00:57]}  g6 {[%clk 0:00:01]} 28. Qxf7 {[%clk 0:00:53]} 1-0


[Site "https://www.chess.com"]

[Event "Titled Tuesday Blitz February 15 Early 2022"]
[White "Demin, Vladimir"]
[Black "Firat, Burak"]
[WhiteFideId "4167457"]
[BlackFideId "6305881"]
[WhiteElo "2501"]
[BlackElo "2419"]
[Result "0-1"]
[Round "08"]
[TimeControl "180+1"]
[Date "2022.02.15"]
[WhiteClock "0:00:03"]
[BlackClock "0:01:03"]

1. e4 {[%clk 0:02:51]}  c5 {[%clk 0:03:00]} 2. Nf3 {[%clk 0:02:51]}  e6 {[%clk 0:02:57]} 3. c3 {[%clk 0:02:50]}  d5 {[%clk 0:02:55]} 4. e5 {[%clk 0:02:49]}  Nc6 {[%clk 0:02:54]} 5. d4 {[%clk 0:02:48]}  Qb6 {[%clk 0:02:55]} 6. Na3 {[%clk 0:02:48]}  cxd4 {[%clk 0:02:49]} 7. cxd4 {[%clk 0:02:47]}  Nge7 {[%clk 0:02:49]} 8. Nc2 {[%clk 0:02:45]}  Nf5 {[%clk 0:02:49]} 9. g4 {[%clk 0:02:43]}  Nfe7 {[%clk 0:02:47]} 10. Bd3 {[%clk 0:02:41]}  h5 {[%clk 0:02:44]} 11. g5 {[%clk 0:02:38]}  h4 {[%clk 0:02:40]} 12. h3 {[%clk 0:02:34]}  Nf5 {[%clk 0:02:33]} 13. O-O {[%clk 0:02:31]}  Bd7 {[%clk 0:02:29]} 14. Rb1 {[%clk 0:02:06]}  Be7 {[%clk 0:02:21]} 15. b4 {[%clk 0:01:58]}  a6 {[%clk 0:02:18]} 16. Bd2 {[%clk 0:01:31]}  Rc8 {[%clk 0:02:12]} 17. a4 {[%clk 0:01:28]}  Qd8 {[%clk 0:02:11]} 18. Qe1 {[%clk 0:01:07]}  b5 {[%clk 0:01:59]} 19. axb5 {[%clk 0:01:05]}  axb5 {[%clk 0:02:00]} 20. Kg2 {[%clk 0:00:59]}  Qb6 {[%clk 0:01:57]} 21. Be3 {[%clk 0:00:45]}  O-O {[%clk 0:01:45]} 22. Qe2 {[%clk 0:00:38]}  Qb7 {[%clk 0:01:38]} 23. Rfd1 {[%clk 0:00:37]}  Ra8 {[%clk 0:01:36]} 24. Bxf5 {[%clk 0:00:27]}  exf5 {[%clk 0:01:37]} 25. Nxh4 {[%clk 0:00:27]}  Ra2 {[%clk 0:01:34]} 26. Ra1 {[%clk 0:00:23]}  Rfa8 {[%clk 0:01:32]} 27. Rxa2 {[%clk 0:00:21]}  Rxa2 {[%clk 0:01:33]} 28. Rd2 {[%clk 0:00:21]}  Nxe5 {[%clk 0:01:25]} 29. dxe5 {[%clk 0:00:14]}  d4+ {[%clk 0:01:26]} 30. Kh2 {[%clk 0:00:08]}  dxe3 {[%clk 0:01:25]} 31. Nxe3 {[%clk 0:00:09]}  Rxd2 {[%clk 0:01:21]} 32. Qxd2 {[%clk 0:00:10]}  Bxg5 {[%clk 0:01:15]} 33. Nhg2 {[%clk 0:00:09]}  f4 {[%clk 0:01:10]} 34. Nd5 {[%clk 0:00:07]}  Bc6 {[%clk 0:01:04]} 35. Ngxf4 {[%clk 0:00:03]}  Bxd5 {[%clk 0:01:03]} 36. Qxd5 {[%clk 0:00:03]}  Bxf4+ {[%clk 0:01:03]} 0-1


[Site "https://www.chess.com"]

[Event "Titled Tuesday Blitz February 15 Early 2022"]
[White "Dew, Brian"]
[Black "Nilsen, Tobias Lang"]
[WhiteFideId "6000495"]
[BlackFideId "1521624"]
[WhiteElo "2118"]
[BlackElo "2013"]
[Result "1-0"]
[Round "08"]
[TimeControl "180+1"]
[Date "2022.02.15"]
[WhiteClock "0:00:09"]
[BlackClock "0:00:39"]

1. b3 {[%clk 0:03:00]}  f5 {[%clk 0:02:44]} 2. Bb2 {[%clk 0:03:01]}  Nf6 {[%clk 0:02:44]} 3. Nf3 {[%clk 0:02:59]}  e6 {[%clk 0:02:43]} 4. c4 {[%clk 0:03:00]}  d5 {[%clk 0:02:41]} 5. g3 {[%clk 0:02:56]}  c6 {[%clk 0:02:41]} 6. Bg2 {[%clk 0:02:56]}  Bd6 {[%clk 0:02:41]} 7. O-O {[%clk 0:02:54]}  O-O {[%clk 0:02:41]} 8. d3 {[%clk 0:02:52]}  Qe7 {[%clk 0:02:40]} 9. Nc3 {[%clk 0:02:49]}  a6 {[%clk 0:02:37]} 10. e4 {[%clk 0:02:46]}  dxe4 {[%clk 0:02:28]} 11. dxe4 {[%clk 0:02:45]}  e5 {[%clk 0:02:28]} 12. exf5 {[%clk 0:02:41]}  Bxf5 {[%clk 0:02:27]} 13. Re1 {[%clk 0:02:32]}  Nbd7 {[%clk 0:02:12]} 14. Qd2 {[%clk 0:02:18]}  Rad8 {[%clk 0:02:05]} 15. Rad1 {[%clk 0:02:16]}  Bc5 {[%clk 0:02:05]} 16. h3 {[%clk 0:02:03]}  Bg6 {[%clk 0:01:53]} 17. Qe2 {[%clk 0:01:37]}  Rde8 {[%clk 0:01:42]} 18. Nd2 {[%clk 0:01:06]}  Ba7 {[%clk 0:01:26]} 19. Rf1 {[%clk 0:01:03]}  Nc5 {[%clk 0:01:22]} 20. Ba3 {[%clk 0:00:58]}  Qc7 {[%clk 0:01:17]} 21. Nde4 {[%clk 0:00:53]}  Ncxe4 {[%clk 0:01:06]} 22. Nxe4 {[%clk 0:00:52]}  Nxe4 {[%clk 0:00:58]} 23. Bxe4 {[%clk 0:00:50]}  Rf6 {[%clk 0:00:55]} 24. Kg2 {[%clk 0:00:39]}  Bd4 {[%clk 0:00:53]} 25. Bxg6 {[%clk 0:00:36]}  hxg6 {[%clk 0:00:50]} 26. Rxd4 {[%clk 0:00:35]}  exd4 {[%clk 0:00:50]} 27. Qxe8+ {[%clk 0:00:35]}  Kh7 {[%clk 0:00:49]} 28. Qe4 {[%clk 0:00:22]}  c5 {[%clk 0:00:48]} 29. Bc1 {[%clk 0:00:14]}  b6 {[%clk 0:00:47]} 30. Bg5 {[%clk 0:00:14]}  Qd7 {[%clk 0:00:47]} 31. Bxf6 {[%clk 0:00:13]}  gxf6 {[%clk 0:00:48]} 32. Re1 {[%clk 0:00:12]}  Kh6 {[%clk 0:00:44]} 33. Qh4+ {[%clk 0:00:11]}  Kg7 {[%clk 0:00:43]} 34. Qe4 {[%clk 0:00:11]}  Kf7 {[%clk 0:00:43]} 35. Qd5+ {[%clk 0:00:11]}  Qxd5+ {[%clk 0:00:44]} 36. cxd5 {[%clk 0:00:12]}  b5 {[%clk 0:00:43]} 37. Kf3 {[%clk 0:00:10]}  c4 {[%clk 0:00:42]} 38. bxc4 {[%clk 0:00:10]}  bxc4 {[%clk 0:00:42]} 39. Ke4 {[%clk 0:00:11]}  d3 {[%clk 0:00:42]} 40. Rd1 {[%clk 0:00:08]}  Ke7 {[%clk 0:00:37]} 41. Kd4 {[%clk 0:00:08]}  c3 {[%clk 0:00:38]} 42. Kxc3 {[%clk 0:00:08]}  Kd6 {[%clk 0:00:38]} 43. Rxd3 {[%clk 0:00:09]}  g5 {[%clk 0:00:38]} 44. Kd4 {[%clk 0:00:09]}  f5 {[%clk 0:00:39]} 45. Re3 {[%clk 0:00:09]}  a5 {[%clk 0:00:38]} 46. Re6+ {[%clk 0:00:09]}  Kd7 {[%clk 0:00:39]} 47. Ra6 {[%clk 0:00:09]} 1-0


[Site "https://www.chess.com"]

[Event "Titled Tuesday Blitz February 15 Early 2022"]
[White "Dilmukhametov, Artur"]
[Black "Saim, Mohamed Ilias"]
[WhiteFideId "24179922"]
[BlackFideId "7900465"]
[WhiteElo "2266"]
[BlackElo "2006"]
[Result "0-1"]
[Round "08"]
[TimeControl "180+1"]
[Date "2022.02.15"]
[WhiteClock "0:01:30"]
[BlackClock "0:00:46"]

1. d4 {[%clk 0:03:00]}  Nf6 {[%clk 0:02:56]} 2. c4 {[%clk 0:02:59]}  e6 {[%clk 0:02:56]} 3. Nc3 {[%clk 0:02:56]}  Bb4 {[%clk 0:02:50]} 4. Bd2 {[%clk 0:02:54]}  O-O {[%clk 0:02:46]} 5. a3 {[%clk 0:02:49]}  Be7 {[%clk 0:02:46]} 6. e4 {[%clk 0:02:47]}  h6 {[%clk 0:02:31]} 7. Qc1 {[%clk 0:02:41]}  Nc6 {[%clk 0:02:19]} 8. d5 {[%clk 0:02:37]}  Nd4 {[%clk 0:02:15]} 9. Bd3 {[%clk 0:02:28]}  Nb3 {[%clk 0:02:13]} 10. Qb1 {[%clk 0:02:22]}  Nxa1 {[%clk 0:02:13]} 11. Qxa1 {[%clk 0:02:22]}  exd5 {[%clk 0:02:13]} 12. exd5 {[%clk 0:02:19]}  d6 {[%clk 0:02:13]} 13. Qc1 {[%clk 0:02:19]}  Re8 {[%clk 0:01:48]} 14. Bxh6 {[%clk 0:02:14]}  gxh6 {[%clk 0:01:47]} 15. Qxh6 {[%clk 0:02:13]}  Bf8+ {[%clk 0:01:46]} 16. Qe3 {[%clk 0:02:05]}  Rxe3+ {[%clk 0:01:46]} 17. fxe3 {[%clk 0:02:05]}  Qe7 {[%clk 0:01:43]} 18. Nd1 {[%clk 0:02:02]}  Ng4 {[%clk 0:01:42]} 19. Nf3 {[%clk 0:01:59]}  Nxe3 {[%clk 0:01:41]} 20. Nxe3 {[%clk 0:01:59]}  Qxe3+ {[%clk 0:01:40]} 21. Be2 {[%clk 0:02:00]}  Bg4 {[%clk 0:01:40]} 22. h3 {[%clk 0:01:56]}  Bxf3 {[%clk 0:01:39]} 23. gxf3 {[%clk 0:01:56]}  Re8 {[%clk 0:01:40]} 24. Rh2 {[%clk 0:01:53]}  Bh6 {[%clk 0:01:38]} 25. Rg2+ {[%clk 0:01:52]}  Kh7 {[%clk 0:01:35]} 26. Kf1 {[%clk 0:01:52]}  Qc1+ {[%clk 0:01:29]} 27. Kf2 {[%clk 0:01:50]}  Qd2 {[%clk 0:01:13]} 28. Kf1 {[%clk 0:01:44]}  Rg8 {[%clk 0:01:00]} 29. Rxg8 {[%clk 0:01:39]}  Kxg8 {[%clk 0:00:59]} 30. h4 {[%clk 0:01:38]}  Qe3 {[%clk 0:00:48]} 31. b4 {[%clk 0:01:36]}  Bf4 {[%clk 0:00:47]} 32. c5 {[%clk 0:01:31]}  Bg3 {[%clk 0:00:46]} 33. cxd6 {[%clk 0:01:30]}  Qf2# {[%clk 0:00:46]} 0-1


[Site "https://www.chess.com"]

[Event "Titled Tuesday Blitz February 15 Early 2022"]
[White "Dobrov, Vladimir"]
[Black "Andreikin, Dmitry"]
[WhiteFideId "4136594"]
[BlackFideId "4158814"]
[WhiteElo "2614"]
[BlackElo "2736"]
[Result "0-1"]
[Round "08"]
[TimeControl "180+1"]
[Date "2022.02.15"]
[WhiteClock "0:00:02"]
[BlackClock "0:00:04"]

1. d4 {[%clk 0:02:52]}  Nf6 {[%clk 0:03:00]} 2. c4 {[%clk 0:02:52]}  e6 {[%clk 0:03:00]} 3. Nf3 {[%clk 0:02:52]}  d5 {[%clk 0:02:58]} 4. Nc3 {[%clk 0:02:52]}  a6 {[%clk 0:02:58]} 5. cxd5 {[%clk 0:02:52]}  exd5 {[%clk 0:02:58]} 6. Bg5 {[%clk 0:02:52]}  Be6 {[%clk 0:02:58]} 7. e3 {[%clk 0:02:51]}  Nbd7 {[%clk 0:02:59]} 8. Bd3 {[%clk 0:02:52]}  h6 {[%clk 0:02:59]} 9. Bh4 {[%clk 0:02:50]}  g5 {[%clk 0:02:59]} 10. Bg3 {[%clk 0:02:50]}  Nh5 {[%clk 0:03:00]} 11. Qc2 {[%clk 0:02:47]}  Nxg3 {[%clk 0:02:59]} 12. hxg3 {[%clk 0:02:47]}  c6 {[%clk 0:02:57]} 13. O-O-O {[%clk 0:02:42]}  g4 {[%clk 0:02:37]} 14. Nh4 {[%clk 0:02:40]}  Qf6 {[%clk 0:02:34]} 15. Nf5 {[%clk 0:02:36]}  O-O-O {[%clk 0:02:33]} 16. Rh5 {[%clk 0:02:35]}  Kb8 {[%clk 0:02:31]} 17. Kb1 {[%clk 0:02:31]}  Rc8 {[%clk 0:02:30]} 18. Rdh1 {[%clk 0:02:09]}  c5 {[%clk 0:02:27]} 19. dxc5 {[%clk 0:01:57]}  Nxc5 {[%clk 0:02:24]} 20. Qd2 {[%clk 0:01:55]}  Nxd3 {[%clk 0:01:58]} 21. Qxd3 {[%clk 0:01:56]}  Qg6 {[%clk 0:01:58]} 22. Nxd5 {[%clk 0:01:47]}  Bc5 {[%clk 0:01:44]} 23. Nf4 {[%clk 0:01:21]}  Qf6 {[%clk 0:01:43]} 24. Nd4 {[%clk 0:01:13]}  Rhd8 {[%clk 0:01:21]} 25. Rxh6 {[%clk 0:01:03]}  Qe5 {[%clk 0:01:14]} 26. Nfxe6 {[%clk 0:01:01]}  fxe6 {[%clk 0:01:14]} 27. Rd1 {[%clk 0:00:35]}  Qd5 {[%clk 0:01:05]} 28. Qf1 {[%clk 0:00:11]}  Qe4+ {[%clk 0:00:32]} 29. Ka1 {[%clk 0:00:11]}  Bxd4 {[%clk 0:00:32]} 30. exd4 {[%clk 0:00:11]}  Rxd4 {[%clk 0:00:33]} 31. Rxd4 {[%clk 0:00:11]}  Qxd4 {[%clk 0:00:32]} 32. Rxe6 {[%clk 0:00:07]}  Rc2 {[%clk 0:00:23]} 33. Qb1 {[%clk 0:00:07]}  Rxf2 {[%clk 0:00:20]} 34. Re4 {[%clk 0:00:07]}  Qf6 {[%clk 0:00:10]} 35. Rxg4 {[%clk 0:00:05]}  Rf1 {[%clk 0:00:09]} 36. Rf4 {[%clk 0:00:06]}  Rxb1+ {[%clk 0:00:09]} 37. Kxb1 {[%clk 0:00:07]}  Qg6+ {[%clk 0:00:09]} 38. Ka1 {[%clk 0:00:05]}  Qxg3 {[%clk 0:00:09]} 39. Rf1 {[%clk 0:00:04]}  Qxg2 {[%clk 0:00:10]} 40. Rc1 {[%clk 0:00:05]}  Qd2 {[%clk 0:00:09]} 41. Kb1 {[%clk 0:00:05]}  Ka7 {[%clk 0:00:10]} 42. Rc2 {[%clk 0:00:05]}  Qd3 {[%clk 0:00:09]} 43. b3 {[%clk 0:00:05]}  Qd4 {[%clk 0:00:09]} 44. Rc4 {[%clk 0:00:05]}  Qd3+ {[%clk 0:00:09]} 45. Kb2 {[%clk 0:00:06]}  b5 {[%clk 0:00:09]} 46. Rc2 {[%clk 0:00:06]}  Qd4+ {[%clk 0:00:08]} 47. Kb1 {[%clk 0:00:06]}  Kb6 {[%clk 0:00:09]} 48. a3 {[%clk 0:00:06]}  Ka5 {[%clk 0:00:09]} 49. Ka2 {[%clk 0:00:05]}  Qe4 {[%clk 0:00:08]} 50. Kb2 {[%clk 0:00:05]}  Kb6 {[%clk 0:00:08]} 51. Kb1 {[%clk 0:00:05]}  Qd3 {[%clk 0:00:07]} 52. Kb2 {[%clk 0:00:05]}  a5 {[%clk 0:00:08]} 53. Rc3 {[%clk 0:00:05]}  Qd4 {[%clk 0:00:08]} 54. Kc2 {[%clk 0:00:05]}  Qf2+ {[%clk 0:00:08]} 55. Kb1 {[%clk 0:00:05]}  Qe1+ {[%clk 0:00:08]} 56. Kb2 {[%clk 0:00:05]}  Qe5 {[%clk 0:00:07]} 57. Kc2 {[%clk 0:00:06]}  Qd5 {[%clk 0:00:07]} 58. Kb2 {[%clk 0:00:06]}  Qf7 {[%clk 0:00:05]} 59. Rc2 {[%clk 0:00:05]}  Qf6+ {[%clk 0:00:04]} 60. Ka2 {[%clk 0:00:06]}  Qd4 {[%clk 0:00:05]} 61. Kb1 {[%clk 0:00:05]}  Qd5 {[%clk 0:00:04]} 62. Kb2 {[%clk 0:00:05]}  a4 {[%clk 0:00:04]} 63. bxa4 {[%clk 0:00:04]}  bxa4 {[%clk 0:00:05]} 64. Rc3 {[%clk 0:00:05]}  Qd2+ {[%clk 0:00:05]} 65. Rc2 {[%clk 0:00:05]}  Qd3 {[%clk 0:00:05]} 66. Rc3 {[%clk 0:00:06]}  Qd4 {[%clk 0:00:04]} 67. Kc2 {[%clk 0:00:06]}  Kb5 {[%clk 0:00:05]} 68. Kb2 {[%clk 0:00:06]}  Qe5 {[%clk 0:00:04]} 69. Kc2 {[%clk 0:00:06]}  Qe2+ {[%clk 0:00:05]} 70. Kc1 {[%clk 0:00:07]}  Qa2 {[%clk 0:00:04]} 71. Kd1 {[%clk 0:00:07]}  Qb2 {[%clk 0:00:04]} 72. Re3 {[%clk 0:00:04]}  Kc4 {[%clk 0:00:04]} 73. Ke1 {[%clk 0:00:03]}  Kd4 {[%clk 0:00:04]} 74. Rf3 {[%clk 0:00:02]}  Qc2 {[%clk 0:00:04]} 75. Kf1 {[%clk 0:00:03]}  Ke4 {[%clk 0:00:04]} 76. Rg3 {[%clk 0:00:03]}  Kf4 {[%clk 0:00:04]} 77. Rh3 {[%clk 0:00:03]}  Qd2 {[%clk 0:00:04]} 78. Kg1 {[%clk 0:00:03]}  Kg4 {[%clk 0:00:04]} 79. Rh8 {[%clk 0:00:03]}  Qc1+ {[%clk 0:00:04]} 80. Kg2 {[%clk 0:00:02]}  Qb2+ {[%clk 0:00:04]} 0-1


[Site "https://www.chess.com"]

[Event "Titled Tuesday Blitz February 15 Early 2022"]
[White "FGHSMN"]
[Black "Musovic, Armin"]
[BlackFideId "939935"]
[WhiteElo "2704"]
[BlackElo "2250"]
[Result "1-0"]
[Round "08"]
[TimeControl "180+1"]
[Date "2022.02.15"]
[WhiteClock "0:00:04"]
[BlackClock "0:00:01"]

1. b3 {[%clk 0:02:57]}  Nf6 {[%clk 0:03:00]} 2. Bb2 {[%clk 0:02:56]}  d5 {[%clk 0:03:00]} 3. Nf3 {[%clk 0:02:55]}  Bg4 {[%clk 0:02:59]} 4. e3 {[%clk 0:02:53]}  e6 {[%clk 0:02:58]} 5. h3 {[%clk 0:02:53]}  Bh5 {[%clk 0:02:58]} 6. g4 {[%clk 0:02:53]}  Bg6 {[%clk 0:02:59]} 7. Ne5 {[%clk 0:02:52]}  a6 {[%clk 0:02:57]} 8. d3 {[%clk 0:02:51]}  c5 {[%clk 0:02:56]} 9. Nd2 {[%clk 0:02:50]}  Nc6 {[%clk 0:02:52]} 10. Nxg6 {[%clk 0:02:38]}  hxg6 {[%clk 0:02:52]} 11. Bg2 {[%clk 0:02:39]}  Bd6 {[%clk 0:02:45]} 12. Qe2 {[%clk 0:02:37]}  Qa5 {[%clk 0:02:44]} 13. f4 {[%clk 0:02:32]}  Nb4 {[%clk 0:02:36]} 14. Qd1 {[%clk 0:02:21]}  d4 {[%clk 0:02:31]} 15. a3 {[%clk 0:02:10]}  dxe3 {[%clk 0:02:17]} 16. axb4 {[%clk 0:02:06]}  Qxb4 {[%clk 0:02:18]} 17. Ra4 {[%clk 0:01:58]}  Qxd2+ {[%clk 0:02:02]} 18. Qxd2 {[%clk 0:01:59]}  exd2+ {[%clk 0:02:02]} 19. Kxd2 {[%clk 0:02:00]}  O-O-O {[%clk 0:01:52]} 20. Rf1 {[%clk 0:01:44]}  Rhe8 {[%clk 0:01:37]} 21. Be5 {[%clk 0:01:27]}  Re7 {[%clk 0:01:16]} 22. Bxf6 {[%clk 0:00:45]}  gxf6 {[%clk 0:01:16]} 23. f5 {[%clk 0:00:45]}  exf5 {[%clk 0:01:13]} 24. gxf5 {[%clk 0:00:45]}  g5 {[%clk 0:01:00]} 25. Re4 {[%clk 0:00:44]}  Be5 {[%clk 0:00:54]} 26. Bf3 {[%clk 0:00:35]}  Red7 {[%clk 0:00:37]} 27. Bg4 {[%clk 0:00:34]}  Kc7 {[%clk 0:00:34]} 28. Ke2 {[%clk 0:00:31]}  b5 {[%clk 0:00:33]} 29. Kf3 {[%clk 0:00:26]}  Kb6 {[%clk 0:00:32]} 30. Rh1 {[%clk 0:00:25]}  Rh8 {[%clk 0:00:28]} 31. Rc1 {[%clk 0:00:21]}  a5 {[%clk 0:00:27]} 32. Ke2 {[%clk 0:00:20]}  Bb2 {[%clk 0:00:26]} 33. Rb1 {[%clk 0:00:20]}  Be5 {[%clk 0:00:26]} 34. Kd2 {[%clk 0:00:18]}  Ra7 {[%clk 0:00:26]} 35. c3 {[%clk 0:00:18]}  Rha8 {[%clk 0:00:25]} 36. Be2 {[%clk 0:00:16]}  a4 {[%clk 0:00:23]} 37. bxa4 {[%clk 0:00:16]}  Rxa4 {[%clk 0:00:24]} 38. Rxa4 {[%clk 0:00:15]}  Rxa4 {[%clk 0:00:24]} 39. d4 {[%clk 0:00:16]}  Bf4+ {[%clk 0:00:19]} 40. Kd3 {[%clk 0:00:12]}  c4+ {[%clk 0:00:15]} 41. Ke4 {[%clk 0:00:12]}  Kc6 {[%clk 0:00:15]} 42. h4 {[%clk 0:00:06]}  Ra8 {[%clk 0:00:13]} 43. h5 {[%clk 0:00:06]}  Re8+ {[%clk 0:00:12]} 44. Kf3 {[%clk 0:00:06]}  Re3+ {[%clk 0:00:12]} 45. Kf2 {[%clk 0:00:07]}  g4 {[%clk 0:00:10]} 46. Bxg4 {[%clk 0:00:07]}  Rxc3 {[%clk 0:00:10]} 47. Bf3+ {[%clk 0:00:07]}  Kb6 {[%clk 0:00:09]} 48. Bd5 {[%clk 0:00:08]}  Ka5 {[%clk 0:00:07]} 49. Bxf7 {[%clk 0:00:07]}  Rh3 {[%clk 0:00:05]} 50. Be8 {[%clk 0:00:04]}  Re3 {[%clk 0:00:02]} 51. Rxb5+ {[%clk 0:00:04]}  Ka6 {[%clk 0:00:02]} 52. Bc6 {[%clk 0:00:04]}  Rd3 {[%clk 0:00:01]} 53. Rc5 {[%clk 0:00:03]}  Rxd4 {[%clk 0:00:01]} 54. Bb5+ {[%clk 0:00:03]}  Kb6 {[%clk 0:00:01]} 55. Rxc4 {[%clk 0:00:03]}  Rd2+ {[%clk 0:00:01]} 56. Kf3 {[%clk 0:00:04]} 1-0


[Site "https://www.chess.com"]

[Event "Titled Tuesday Blitz February 15 Early 2022"]
[White "Galyas, Miklos"]
[Black "Shyaamnikhil P"]
[WhiteFideId "707244"]
[BlackFideId "5024218"]
[WhiteElo "2409"]
[BlackElo "2292"]
[Result "1-0"]
[Round "08"]
[TimeControl "180+1"]
[Date "2022.02.15"]
[WhiteClock "0:01:36"]
[BlackClock "0:00:30"]

1. c4 {[%clk 0:03:00]}  e6 {[%clk 0:02:59]} 2. e4 {[%clk 0:02:59]}  c5 {[%clk 0:02:59]} 3. Nc3 {[%clk 0:02:58]}  Nc6 {[%clk 0:02:57]} 4. g3 {[%clk 0:02:58]}  g6 {[%clk 0:02:56]} 5. Bg2 {[%clk 0:02:58]}  Bg7 {[%clk 0:02:56]} 6. Nge2 {[%clk 0:02:58]}  h5 {[%clk 0:02:54]} 7. h3 {[%clk 0:02:56]}  Nge7 {[%clk 0:02:52]} 8. d3 {[%clk 0:02:54]}  Nd4 {[%clk 0:02:47]} 9. Nxd4 {[%clk 0:02:52]}  cxd4 {[%clk 0:02:47]} 10. Ne2 {[%clk 0:02:45]}  O-O {[%clk 0:02:45]} 11. O-O {[%clk 0:02:45]}  d5 {[%clk 0:02:44]} 12. exd5 {[%clk 0:02:35]}  exd5 {[%clk 0:02:45]} 13. b3 {[%clk 0:02:32]}  dxc4 {[%clk 0:02:44]} 14. bxc4 {[%clk 0:02:31]}  Nc6 {[%clk 0:02:39]} 15. Nf4 {[%clk 0:02:29]}  h4 {[%clk 0:02:31]} 16. g4 {[%clk 0:02:28]}  Bd7 {[%clk 0:02:20]} 17. Nd5 {[%clk 0:02:28]}  Rc8 {[%clk 0:02:18]} 18. Bf4 {[%clk 0:02:27]}  Be5 {[%clk 0:02:15]} 19. Qd2 {[%clk 0:02:26]}  Be6 {[%clk 0:02:03]} 20. Bg5 {[%clk 0:02:20]}  f6 {[%clk 0:01:58]} 21. Bxh4 {[%clk 0:02:20]}  g5 {[%clk 0:01:50]} 22. Bg3 {[%clk 0:02:18]}  Bxg3 {[%clk 0:01:45]} 23. fxg3 {[%clk 0:02:18]}  Kg7 {[%clk 0:01:45]} 24. Rae1 {[%clk 0:02:11]}  Bxd5 {[%clk 0:01:43]} 25. Bxd5 {[%clk 0:02:11]}  Ne5 {[%clk 0:01:38]} 26. Rf5 {[%clk 0:02:11]}  Ng6 {[%clk 0:01:26]} 27. Qf2 {[%clk 0:02:01]}  Rc7 {[%clk 0:01:18]} 28. Qxd4 {[%clk 0:01:58]}  Re7 {[%clk 0:01:10]} 29. Ref1 {[%clk 0:01:56]}  Qd6 {[%clk 0:01:00]} 30. Qf2 {[%clk 0:01:53]}  b6 {[%clk 0:00:46]} 31. h4 {[%clk 0:01:53]}  Re5 {[%clk 0:00:44]} 32. hxg5 {[%clk 0:01:45]}  fxg5 {[%clk 0:00:32]} 33. Rxf8 {[%clk 0:01:41]}  Qxf8 {[%clk 0:00:31]} 34. Qxf8+ {[%clk 0:01:36]}  Nxf8 {[%clk 0:00:30]} 35. Rf7+ {[%clk 0:01:36]} 1-0


[Site "https://www.chess.com"]